bitfinex/quotes_BTCUSD_20240831
["timestamp","ask_amount","ask_price","bid_price","bid_amount"]
[1725106545953,1.48071183,59251.0,59250.0,0.00110436]
[1725106546125,1.55451672,59251.0,59250.0,0.00610436]
[1725106547190,1.55451672,59251.0,59250.0,0.00110436]
[1725106549481,1.58099254,59251.0,59250.0,0.00110436]
[1725106556631,1.55451672,59251.0,59250.0,0.00110436]
[1725106559792,1.58099468,59251.0,59250.0,0.00110436]
[1725106566597,1.55451672,59251.0,59250.0,0.00110436]
[1725106566850,1.89206372,59251.0,59250.0,0.00110436]
[1725106569680,1.55423686,59251.0,59250.0,0.06460436]
[1725106569876,1.58071375,59251.0,59250.0,0.14590436]
[1725106570657,1.55423686,59251.0,59250.0,0.14590436]
[1725106571089,2.54681223,59251.0,59250.0,0.14590436]
[1725106573152,2.57328897,59251.0,59250.0,0.14590436]
[1725106577211,1.5807136,59251.0,59250.0,0.14590436]
[1725106577447,1.5807136,59251.0,59250.0,0.15090436]
[1725106578807,1.5807136,59251.0,59250.0,0.14590436]
[1725106579666,1.5807136,59251.0,59250.0,0.14680416]
[1725106581830,1.2431666,59251.0,59250.0,0.14680416]
[1725106586407,1.21668986,59251.0,59250.0,0.14680416]
[1725106589947,1.24316567,59251.0,59250.0,0.14680416]
[1725106592654,1.21668986,59251.0,59250.0,0.14680416]
[1725106595299,1.27334764,59251.0,59250.0,0.14680416]
[1725106595936,1.29982368,59251.0,59250.0,0.14680416]
[1725106596559,1.27334764,59251.0,59250.0,0.14680416]
[1725106599982,1.2998236,59251.0,59250.0,0.14680416]
[1725106602314,1.27334764,59251.0,59250.0,0.14680416]
[1725106605739,1.2998235,59251.0,59250.0,0.14680416]
[1725106608447,0.5247295,59251.0,59250.0,0.14680416]
[1725106608656,0.5247295,59251.0,59250.0,0.52163567]
[1725106608799,0.49825364,59251.0,59250.0,0.52163567]
[1725106609825,0.18146765,59251.0,59250.0,0.52163567]
[1725106610046,0.01269465,59251.0,59250.0,0.64839029]
[1725106610490,0.000818,59251.0,59250.0,0.69041167]
[1725106611377,0.000818,59251.0,59250.0,1.45537887]
[1725106611731,0.000818,59251.0,59250.0,1.46137887]
[1725106612514,0.001818,59251.0,59250.0,1.47037887]
[1725106612881,0.001818,59251.0,59250.0,1.80793087]
[1725106613502,0.001818,59251.0,59250.0,2.48463831]
[1725106613931,0.001818,59251.0,59250.0,2.49463831]
[1725106614125,0.001818,59251.0,59250.0,1.81793087]
[1725106614950,0.001818,59251.0,59250.0,1.47237887]
[1725106615621,0.000818,59251.0,59250.0,1.46337887]
[1725106616119,0.000818,59251.0,59250.0,1.47737887]
[1725106616333,0.000818,59251.0,59250.0,1.49137887]
[1725106616546,0.000818,59251.0,59250.0,1.47737887]
[1725106616986,0.000818,59251.0,59250.0,1.49337887]
[1725106619443,0.000818,59251.0,59250.0,1.49325919]
[1725106622224,0.00014313,59251.0,59250.0,1.49325919]
[1725106627887,0.00014313,59251.0,59250.0,1.49324952]
[1725106632676,0.00014313,59251.0,59250.0,1.49324906]
[1725106636958,2.517e-05,59251.0,59250.0,1.49324906]
[1725106637385,2.517e-05,59251.0,59250.0,1.50593566]
[1725106639362,2.517e-05,59251.0,59250.0,1.49324906]
[1725106639637,0.337479,59263.0,59260.0,0.005]
[1725106639756,0.168745,59261.0,59260.0,0.005]
[1725106639963,0.50624,59261.0,59260.0,0.005]
[1725106640402,0.51589712,59261.0,59260.0,0.005]
[1725106640594,0.17840212,59261.0,59260.0,0.005]
[1725106640998,0.17840212,59261.0,59260.0,0.013]
[1725106642065,0.17840212,59261.0,59260.0,0.023]
[1725106643101,0.00965712,59261.0,59260.0,0.1650994]
[1725106643306,0.00965712,59261.0,59260.0,0.24847394]
[1725106643509,0.168739,59263.0,59262.0,0.005]
[1725106643871,0.168735,59265.0,59264.0,0.005]
[1725106644294,0.168735,59265.0,59264.0,0.05554726]
[1725106645552,0.168735,59265.0,59264.0,0.12784726]
[1725106646233,0.168735,59265.0,59264.0,0.0773]
[1725106646666,0.168735,59265.0,59264.0,0.0803]
[1725106648129,0.168735,59265.0,59264.0,0.53089839]
[1725106649159,0.000818,59267.0,59266.0,0.005]
[1725106649394,0.000818,59267.0,59266.0,0.484351]
[1725106649600,0.000818,59267.0,59266.0,0.44937382]
[1725106649979,0.000818,59267.0,59266.0,0.95556482]
[1725106650210,0.000818,59267.0,59266.0,0.61810382]
[1725106650394,0.000818,59267.0,59266.0,0.45037382]
[1725106650610,0.01046306,59267.0,59266.0,0.61972969]
[1725106650810,0.000818,59267.0,59266.0,0.61972969]
[1725106651341,0.000818,59267.0,59266.0,0.61572969]
[1725106651541,0.000818,59267.0,59266.0,0.61472969]
[1725106651744,0.000818,59267.0,59266.0,0.63072969]
[1725106655852,0.000818,59267.0,59266.0,2.69381489]
[1725106656411,0.000818,59267.0,59266.0,3.37011117]
[1725106656686,0.000818,59267.0,59266.0,2.84361408]
[1725106656857,0.000818,59267.0,59266.0,3.21823556]
[1725106658122,0.000818,59267.0,59266.0,3.22023556]
[1725106658548,0.000818,59267.0,59266.0,3.21823556]
[1725106659131,0.000818,59267.0,59266.0,3.37006276]
[1725106661343,0.000818,59267.0,59266.0,3.48283336]
[1725106661570,0.00014535,59267.0,59266.0,3.59410757]
[1725106662247,0.00014535,59267.0,59266.0,3.65640757]
[1725106662650,0.00014535,59267.0,59266.0,3.66540757]
[1725106663390,0.00014535,59267.0,59266.0,4.00286857]
[1725106663753,0.00014535,59267.0,59266.0,3.99586857]
[1725106663965,0.00014535,59267.0,59266.0,3.98686857]
[1725106664165,0.00014535,59267.0,59266.0,4.00086857]
[1725106664403,0.00014535,59267.0,59266.0,4.00786857]
[1725106664567,0.00014535,59267.0,59266.0,3.99386857]
[1725106664775,0.00014535,59267.0,59266.0,3.95835013]
[1725106665101,0.00014535,59267.0,59266.0,3.98819027]
[1725106665232,0.00014535,59267.0,59266.0,4.00219027]
[1725106665467,0.00014535,59267.0,59266.0,4.01486238]
[1725106668155,0.00014535,59267.0,59266.0,4.01486059]
[1725106668352,0.00014535,59267.0,59266.0,4.00218848]
[1725106668570,0.00014535,59267.0,59266.0,4.01485916]
[1725106668851,0.00014535,59267.0,59266.0,4.19288572]
[1725106669227,0.00014535,59267.0,59266.0,4.53034672]
[1725106669641,0.000819,59276.0,59275.0,0.2001]
[1725106669801,0.000819,59276.0,59275.0,2.01491563]
[1725106670004,0.000819,59276.0,59275.0,2.97922924]
[1725106670206,0.000819,59276.0,59275.0,3.31663924]
[1725106671421,0.000819,59276.0,59275.0,3.29755857]
[1725106671629,0.000819,59276.0,59275.0,3.38042177]
[1725106672076,0.000819,59276.0,59275.0,3.46792177]
[1725106672277,0.000819,59276.0,59275.0,3.45392177]
[1725106672682,0.000819,59276.0,59275.0,3.50181177]
[1725106672883,0.000819,59276.0,59275.0,3.5198844]
[1725106673126,0.000819,59276.0,59275.0,3.5058844]
[1725106673457,0.000819,59276.0,59275.0,3.5198844]
[1725106673839,0.000819,59276.0,59275.0,3.4918844]
[1725106674040,0.000819,59276.0,59275.0,3.71488199]
[1725106674350,0.000819,59276.0,59275.0,3.74288199]
[1725106674546,0.000819,59276.0,59275.0,3.72888199]
[1725106674749,0.000819,59276.0,59275.0,3.72887242]
[1725106675004,0.000819,59276.0,59275.0,3.74287242]
[1725106675341,0.000819,59276.0,59275.0,2.99549346]
[1725106675492,0.000819,59276.0,59275.0,3.74287242]
[1725106675698,0.000819,59289.0,59284.0,2.179415]
[1725106675902,0.000819,59289.0,59284.0,3.96220535]
[1725106676064,0.000819,59289.0,59284.0,3.8610226]
[1725106676264,0.000819,59289.0,59284.0,3.92912468]
[1725106676583,5.539e-05,59294.0,59293.0,1.702574]
[1725106676782,5.539e-05,59294.0,59293.0,2.17764678]
[1725106677197,5.539e-05,59294.0,59293.0,2.24184678]
[1725106678119,5.539e-05,59294.0,59293.0,2.15523587]
[1725106678897,5.539e-05,59294.0,59293.0,2.14123587]
[1725106679090,5.539e-05,59294.0,59293.0,1.33019496]
[1725106679289,5.539e-05,59294.0,59293.0,1.268774]
[1725106679699,5.539e-05,59294.0,59293.0,1.282774]
[1725106680380,5.539e-05,59294.0,59293.0,1.268774]
[1725106680643,5.539e-05,59294.0,59293.0,1.367267]
[1725106680910,5.539e-05,59294.0,59293.0,1.381267]
[1725106681142,5.539e-05,59294.0,59293.0,0.538]
[1725106681357,0.31550639,59294.0,59293.0,0.033]
[1725106681581,0.662517,59294.0,59293.0,0.033]
[1725106682737,0.999819,59294.0,59293.0,0.033]
[1725106684164,1.337121,59294.0,59293.0,0.033]
[1725106688005,1.33738844,59294.0,59293.0,0.033]
[1725106689391,1.33738844,59294.0,59293.0,0.0338998]
[1725106689801,1.36384306,59294.0,59293.0,0.0338998]
[1725106690341,1.36584306,59294.0,59293.0,0.0338998]
[1725106691091,1.38408289,59294.0,59293.0,0.0338998]
[1725106692640,1.35762827,59294.0,59293.0,0.0338998]
[1725106693624,1.35736083,59294.0,59293.0,0.0338998]
[1725106695253,1.35763674,59294.0,59293.0,0.0338998]
[1725106695917,1.38409178,59294.0,59293.0,0.0338998]
[1725106696674,1.38409178,59294.0,59293.0,0.0288998]
[1725106696675,1.83139378,59294.0,59293.0,0.0288998]
[1725106697194,1.80493874,59294.0,59293.0,0.0288998]
[1725106697444,1.80493874,59294.0,59293.0,0.0148998]
[1725106697648,1.80493874,59294.0,59293.0,0.0118998]
[1725106697998,1.80493874,59294.0,59293.0,0.0208998]
[1725106698772,1.80493874,59294.0,59293.0,0.0008998]
[1725106699180,1.80493874,59294.0,59293.0,0.0118998]
[1725106699615,1.80493874,59294.0,59293.0,0.0008998]
[1725106700047,1.80493874,59294.0,59293.0,0.0038998]
[1725106700489,1.83139734,59294.0,59293.0,0.0038998]
[1725106701921,2.82397271,59294.0,59293.0,0.0038998]
[1725106706024,2.73194534,59294.0,59293.0,0.0038998]
[1725106706543,2.70548674,59294.0,59293.0,0.0038998]
[1725106708935,2.73578674,59294.0,59293.0,0.0038998]
[1725106709783,2.76224523,59294.0,59293.0,0.0038998]
[1725106712174,2.6768413,59294.0,59293.0,0.0088998]
[1725106712979,2.6776593,59294.0,59293.0,0.0088998]
[1725106713187,2.6776593,59294.0,59293.0,0.0058998]
[1725106713547,2.6796593,59294.0,59293.0,0.0058998]
[1725106713960,1.68708393,59294.0,59293.0,0.0058998]
[1725106716473,1.66062544,59294.0,59293.0,0.0058998]
[1725106719779,1.68708373,59294.0,59293.0,0.0058998]
[1725106722253,1.66062544,59294.0,59293.0,0.0058998]
[1725106723717,1.68708232,59294.0,59293.0,0.0058998]
[1725106726632,1.66062544,59294.0,59293.0,0.0058998]
[1725106730372,1.66062544,59294.0,59293.0,0.05646068]
[1725106730595,1.32332344,59294.0,59293.0,0.0058998]
[1725106731081,1.32332344,59294.0,59293.0,0.0699998]
[1725106731302,1.32332344,59294.0,59293.0,0.14584113]
[1725106731995,1.34977998,59294.0,59293.0,0.14584113]
[1725106732602,0.98223815,59294.0,59293.0,0.44456447]
[1725106732607,0.98423815,59294.0,59293.0,0.44456447]
[1725106733183,0.98223815,59294.0,59293.0,0.44456447]
[1725106733610,0.98223815,59294.0,59293.0,0.44756447]
[1725106733780,0.99223815,59294.0,59293.0,0.44756447]
[1725106733942,0.99223815,59294.0,59293.0,0.45356447]
[1725106734467,0.99223815,59294.0,59293.0,0.55468624]
[1725106734935,0.99223815,59294.0,59293.0,0.55168624]
[1725106735157,0.98223815,59294.0,59293.0,0.55168624]
[1725106735357,0.98223815,59294.0,59293.0,0.55968624]
[1725106735868,0.98023815,59294.0,59293.0,0.55968624]
[1725106736073,0.98023815,59294.0,59293.0,0.53445244]
[1725106736074,0.91223815,59294.0,59293.0,0.53445244]
[1725106736527,0.88578161,59294.0,59293.0,0.53445244]
[1725106737066,0.88578161,59294.0,59293.0,0.53444707]
[1725106737271,0.88578161,59294.0,59293.0,0.15988634]
[1725106737616,0.88578161,59294.0,59293.0,0.55972258]
[1725106738019,0.88578161,59294.0,59293.0,0.64002258]
[1725106740898,0.92223698,59294.0,59293.0,0.64002258]
[1725106741094,0.92223698,59294.0,59293.0,0.39446052]
[1725106741095,0.92423698,59294.0,59293.0,0.39446052]
[1725106741305,0.92423698,59294.0,59293.0,0.0198998]
[1725106741306,0.95453698,59294.0,59293.0,0.0198998]
[1725106741523,1.29183898,59294.0,59293.0,0.0198998]
[1725106741960,1.29183898,59294.0,59293.0,0.0118998]
[1725106742160,1.29183898,59294.0,59293.0,0.0058998]
[1725106742362,1.29383898,59294.0,59293.0,0.0058998]
[1725106742773,1.29183898,59294.0,59293.0,0.0058998]
[1725106743190,1.29383898,59294.0,59293.0,0.0058998]
[1725106744467,1.26353898,59294.0,59293.0,0.0058998]
[1725106745954,1.26353898,59294.0,59293.0,0.05648073]
[1725106746619,1.23708361,59294.0,59293.0,0.05648073]
[1725106747828,1.23708361,59294.0,59293.0,0.0058998]
[1725106748019,1.23708361,59294.0,59293.0,0.0008998]
[1725106749665,2.22965898,59294.0,59293.0,0.0008998]
[1725106750571,2.25611599,59294.0,59293.0,0.0008998]
[1725106750760,2.59341799,59294.0,59293.0,0.0008998]
[1725106756140,2.62371799,59294.0,59293.0,0.0008998]
[1725106756452,2.59726098,59294.0,59293.0,0.0008998]
[1725106756682,2.67666098,59294.0,59293.0,0.0008998]
[1725106757294,3.01396298,59294.0,59293.0,0.0008998]
[1725106759835,3.04042218,59294.0,59293.0,0.0008998]
[1725106766609,3.01396298,59294.0,59293.0,0.0008998]
[1725106769450,3.01396298,59294.0,59279.0,0.0639]
[1725106769451,0.18069,59280.0,59279.0,0.0639]
[1725106769638,0.28069,59280.0,59279.0,0.0639]
[1725106769903,1.30086309,59280.0,59279.0,0.0639]
[1725106770278,1.63824409,59280.0,59279.0,0.0639]
[1725106770471,1.30086309,59280.0,59279.0,0.0689]
[1725106770681,1.63824409,59280.0,59279.0,0.0639]
[1725106770885,1.63824409,59280.0,59279.0,0.0869]
[1725106771219,1.66470603,59280.0,59279.0,0.0869]
[1725106771624,1.66470603,59280.0,59279.0,0.0739]
[1725106772067,1.66470603,59280.0,59279.0,0.0809]
[1725106772068,1.35917696,59280.0,59279.0,0.0809]
[1725106772275,1.52786696,59280.0,59279.0,0.0809]
[1725106772520,1.52786696,59280.0,59279.0,0.0709]
[1725106772692,1.54617644,59280.0,59279.0,0.0709]
[1725106772899,1.54617644,59280.0,59279.0,0.0759]
[1725106773473,1.20879544,59280.0,59279.0,0.0759]
[1725106774082,1.30879544,59280.0,59279.0,0.0759]
[1725106776524,1.2823335,59280.0,59279.0,0.0759]
[1725106779527,2.27490887,59280.0,59279.0,0.0759]
[1725106779974,2.3013724,59280.0,59279.0,0.0759]
[1725106782927,2.3013724,59280.0,59279.0,0.0768009]
[1725106783154,2.3021914,59280.0,59279.0,0.0768009]
[1725106785521,1.30961603,59280.0,59279.0,0.0768009]
[1725106786522,1.2831525,59280.0,59279.0,0.0768009]
[1725106789864,1.30961623,59280.0,59279.0,0.0768009]
[1725106793810,0.97223523,59280.0,59279.0,0.2074813]
[1725106794422,0.97223523,59280.0,59279.0,0.20750021]
[1725106795051,0.97223523,59280.0,59279.0,0.1569009]
[1725106795660,0.63485423,59280.0,59279.0,0.1569009]
[1725106796511,0.6083905,59280.0,59279.0,0.1569009]
[1725106797303,1.60096587,59280.0,59279.0,0.23279987]
[1725106798040,1.60096587,59280.0,59279.0,0.60745712]
[1725106799258,1.60096587,59280.0,59279.0,0.1569009]
[1725106799462,1.60096587,59280.0,59279.0,0.60751172]
[1725106799882,1.62742721,59280.0,59279.0,0.60751172]
[1725106800308,1.62742721,59280.0,59279.0,0.53155816]
[1725106800515,1.94649873,59280.0,59279.0,0.53155816]
[1725106801148,1.92003739,59280.0,59279.0,0.53155816]
[1725106802203,1.92003739,59280.0,59279.0,0.63282957]
[1725106802438,1.92003739,59280.0,59279.0,0.53155816]
[1725106802643,1.92003739,59280.0,59279.0,0.63282957]
[1725106804393,1.94649905,59280.0,59279.0,0.63282957]
[1725106806956,1.94649905,59280.0,59279.0,0.1569009]
[1725106807137,1.94649905,59280.0,59279.0,0.63288517]
[1725106807829,1.94649905,59280.0,59279.0,0.63288733]
[1725106811833,1.12788612,59280.0,59279.0,0.63288733]
[1725106812064,1.12788612,59280.0,59279.0,0.53155713]
[1725106818361,1.12788612,59280.0,59279.0,0.70025013]
[1725106818836,1.12788612,59280.0,59279.0,1.03763713]
[1725106819065,0.13531075,59280.0,59279.0,1.03763713]
[1725106819320,0.02728066,59280.0,59279.0,1.03763713]
[1725106820044,0.000819,59280.0,59279.0,1.03763713]
[1725106820272,0.00884663,59280.0,59279.0,1.89948186]
[1725106820515,0.000819,59280.0,59279.0,2.24186886]
[1725106820989,0.00015112,59280.0,59279.0,2.24186886]
[1725106821698,0.00015112,59280.0,59279.0,2.23486886]
[1725106821936,0.00015112,59280.0,59279.0,2.24886886]
[1725106822369,0.00015112,59280.0,59279.0,2.22986886]
[1725106822801,0.00015112,59280.0,59279.0,2.25786886]
[1725106823438,0.00015112,59280.0,59279.0,2.4095243]
[1725106824444,0.00015112,59280.0,59279.0,2.25786886]
[1725106824660,0.00015112,59280.0,59279.0,1.73341113]
[1725106826163,0.00015112,59280.0,59279.0,1.7333135]
[1725106827120,0.00015112,59280.0,59279.0,1.73331524]
[1725106829118,0.00015112,59280.0,59279.0,1.39592824]
[1725106831968,0.00015112,59280.0,59279.0,1.39592333]
[1725106835911,2.802e-05,59280.0,59279.0,1.39592333]
[1725106839188,2.802e-05,59280.0,59279.0,2.07180695]
[1725106844279,2.802e-05,59280.0,59279.0,2.27350546]
[1725106845345,2.802e-05,59280.0,59279.0,2.25767239]
[1725106845551,2.802e-05,59280.0,59279.0,2.27350546]
[1725106845769,2.802e-05,59280.0,59279.0,2.30200499]
[1725106846679,2.802e-05,59280.0,59279.0,2.28617192]
[1725106848842,2.802e-05,59280.0,59279.0,2.25767239]
[1725106849045,2.802e-05,59280.0,59279.0,1.93611847]
[1725106849459,2.802e-05,59280.0,59279.0,2.27350547]
[1725106849677,2.802e-05,59280.0,59279.0,2.28617193]
[1725106850862,0.505983,59291.0,59290.0,0.005]
[1725106851058,0.505983,59291.0,59290.0,0.37955543]
[1725106851222,0.88622449,59291.0,59290.0,0.37955543]
[1725106851649,0.88622449,59291.0,59290.0,0.48056614]
[1725106852056,0.88622449,59291.0,59290.0,0.49056614]
[1725106852657,0.88622449,59291.0,59290.0,0.38955543]
[1725106852996,0.88704349,59291.0,59290.0,0.38955543]
[1725106853380,0.88704349,59291.0,59290.0,0.39755543]
[1725106854502,0.88704349,59291.0,59290.0,0.49856614]
[1725106856531,0.88704349,59291.0,59290.0,0.39755543]
[1725106858541,0.88704349,59291.0,59290.0,0.52381881]
[1725106859280,0.54971949,59291.0,59290.0,0.39755543]
[1725106859483,0.88704349,59291.0,59290.0,0.39755543]
[1725106859681,0.88704349,59291.0,59290.0,0.4734198]
[1725106859884,1.22436749,59291.0,59290.0,0.023]
[1725106861089,1.25082473,59291.0,59290.0,0.023]
[1725106862561,1.25082473,59291.0,59290.0,0.09887971]
[1725106863729,1.25082473,59291.0,59290.0,0.47344604]
[1725106864439,1.25082473,59291.0,59290.0,0.39756633]
[1725106866553,1.22436749,59291.0,59290.0,0.39756633]
[1725106869112,1.22436749,59291.0,59290.0,0.52403252]
[1725106869735,1.22436749,59291.0,59290.0,0.5241737]
[1725106871210,1.25082473,59291.0,59290.0,0.5241737]
[1725106873462,1.22052473,59291.0,59290.0,0.5241737]
[1725106874152,1.22052473,59291.0,59290.0,0.5895737]
[1725106876517,1.19406749,59291.0,59290.0,0.5895737]
[1725106877106,1.19406749,59291.0,59290.0,0.5904735]
[1725106878925,1.19406749,59291.0,59290.0,0.46386614]
[1725106879507,1.19406749,59291.0,59290.0,0.46386235]
[1725106881152,1.22052442,59291.0,59290.0,0.46386235]
[1725106882991,1.22052442,59291.0,59290.0,0.39846235]
[1725106884186,1.22052442,59291.0,59290.0,0.52506613]
[1725106886517,1.19406749,59291.0,59290.0,0.52506613]
[1725106889945,1.22052446,59291.0,59290.0,0.52506613]
[1725106890150,1.19406749,59291.0,59290.0,0.52506613]
[1725106890392,1.19406749,59291.0,59290.0,0.39846235]
[1725106890820,1.19406749,59291.0,59290.0,0.52506613]
[1725106891366,0.85884996,59291.0,59290.0,0.39846235]
[1725106892000,1.19617396,59291.0,59290.0,0.39846235]
[1725106893216,1.22263096,59291.0,59290.0,0.39846235]
[1725106893462,1.22263096,59291.0,59290.0,0.38846235]
[1725106893881,1.22263096,59291.0,59290.0,0.47244143]
[1725106894084,1.22263096,59291.0,59290.0,0.39646235]
[1725106894508,1.22263096,59291.0,59290.0,0.39647924]
[1725106894712,1.22263096,59291.0,59290.0,0.38847924]
[1725106894928,1.22263096,59291.0,59290.0,0.39447924]
[1725106896336,1.22263096,59291.0,59290.0,0.0198998]
[1725106896583,1.19617396,59291.0,59290.0,0.0198998]
[1725106897998,1.19617396,59291.0,59290.0,0.09588666]
[1725106898322,1.19617396,59291.0,59290.0,0.39448735]
[1725106899220,1.63349796,59291.0,59290.0,0.39448735]
[1725106899428,1.66379796,59291.0,59290.0,0.0148998]
[1725106899643,1.66379796,59291.0,59290.0,0.06556046]
[1725106900031,1.69025566,59291.0,59290.0,0.06556046]
[1725106901495,1.69025566,59291.0,59290.0,0.0148998]
[1725106904626,1.69025566,59291.0,59290.0,0.06555599]
[1725106904871,1.69025566,59291.0,59290.0,0.0148998]
[1725106906543,1.66379796,59291.0,59290.0,0.0148998]
[1725106906965,1.63349796,59291.0,59290.0,0.0148998]
[1725106909960,1.65995714,59291.0,59290.0,0.0148998]
[1725106916479,1.63349796,59291.0,59290.0,0.0148998]
[1725106917613,1.63349796,59291.0,59290.0,0.0759998]
[1725106918574,1.63267896,59291.0,59290.0,0.0759998]
[1725106919846,1.65913717,59291.0,59290.0,0.0759998]
[1725106922548,1.63267896,59291.0,59290.0,0.0759998]
[1725106923163,1.29535496,59291.0,59290.0,0.0759998]
[1725106925339,1.29617296,59291.0,59290.0,0.0759998]
[1725106925951,1.32263211,59291.0,59290.0,0.0759998]
[1725106926722,0.64798411,59291.0,59290.0,0.0809998]
[1725106926900,0.64798411,59291.0,59290.0,0.1566998]
[1725106926901,0.14200111,59291.0,59290.0,0.1566998]
[1725106928756,0.14200111,59291.0,59290.0,0.53126804]
[1725106929289,0.14200111,59291.0,59290.0,0.6325198]
[1725106929490,0.14200111,59291.0,59290.0,0.53126804]
[1725106929491,0.04200111,59291.0,59290.0,0.53126804]
[1725106930656,0.21066011,59291.0,59290.0,0.6325198]
[1725106930888,0.31066011,59291.0,59290.0,0.53126804]
[1725106932457,0.31066011,59291.0,59290.0,0.63251862]
[1725106933396,0.31066011,59291.0,59290.0,0.53126934]
[1725106933742,0.31066011,59291.0,59290.0,0.63251862]
[1725106934540,0.31066011,59291.0,59290.0,0.53126934]
[1725106934987,0.31066011,59291.0,59290.0,0.63251862]
[1725106935188,0.31066011,59291.0,59290.0,0.53126934]
[1725106935838,0.31066011,59291.0,59290.0,0.63251862]
[1725106936701,0.28420096,59291.0,59290.0,0.63251862]
[1725106939662,0.11554196,59291.0,59290.0,0.53126934]
[1725106939886,0.000818,59291.0,59290.0,0.53126934]
[1725106940116,0.01307099,59291.0,59290.0,0.53126934]
[1725106940366,0.000818,59291.0,59290.0,0.53126934]
[1725106940589,0.01307099,59291.0,59290.0,0.53126934]
[1725106940820,0.000818,59291.0,59290.0,0.53126934]
[1725106941040,0.01307174,59291.0,59290.0,0.53126934]
[1725106941242,0.000818,59291.0,59290.0,0.53126934]
[1725106941448,0.11307174,59291.0,59290.0,0.53126934]
[1725106942239,0.11307174,59291.0,59290.0,0.53124142]
[1725106943029,0.11307174,59291.0,59290.0,0.65771393]
[1725106943832,0.01307174,59291.0,59290.0,0.65771393]
[1725106946913,0.01307174,59291.0,59290.0,0.82637593]
[1725106947085,0.01307174,59291.0,59290.0,0.3253618]
[1725106947326,0.01307174,59291.0,59290.0,0.82632987]
[1725106947904,0.01307174,59291.0,59290.0,1.16365487]
[1725106948106,0.000818,59291.0,59290.0,1.16365487]
[1725106952169,0.000818,59291.0,59290.0,1.16360673]
[1725106952386,0.000818,59291.0,59290.0,1.50093173]
[1725106957152,0.000818,59291.0,59290.0,1.50091432]
[1725106957327,0.000818,59291.0,59290.0,1.16358932]
[1725106959191,0.01306732,59291.0,59290.0,1.16358932]
[1725106959361,0.000818,59291.0,59290.0,1.16358932]
[1725106959558,0.01306732,59291.0,59290.0,1.16358932]
[1725106959830,0.000818,59291.0,59290.0,1.16358932]
[1725106960042,0.01306732,59291.0,59290.0,1.16358932]
[1725106960260,0.000818,59291.0,59290.0,1.16358932]
[1725106960483,0.01306732,59291.0,59290.0,1.16358932]
[1725106960711,0.000818,59291.0,59290.0,1.16358932]
[1725106961148,0.01306732,59291.0,59290.0,1.16358932]
[1725106961364,0.000818,59291.0,59290.0,1.16358932]
[1725106961628,0.01306732,59291.0,59290.0,1.16358932]
[1725106961875,0.000818,59291.0,59290.0,1.16358932]
[1725106962114,0.01306732,59291.0,59290.0,1.16360692]
[1725106963484,0.01306732,59291.0,59290.0,1.03722247]
[1725106963941,0.01306732,59291.0,59290.0,1.1636165]
[1725106964438,0.01306732,59291.0,59290.0,1.03722247]
[1725106967452,0.01306732,59291.0,59290.0,0.82631716]
[1725106967910,0.01306732,59291.0,59290.0,1.03722247]
[1725106968165,0.01306732,59291.0,59290.0,0.53123547]
[1725106968388,0.01306732,59291.0,59290.0,0.69989747]
[1725106968609,0.01306732,59291.0,59290.0,0.53123547]
[1725106968852,0.01306732,59291.0,59290.0,0.69989747]
[1725106969084,0.01306732,59291.0,59290.0,0.82633733]
[1725106969390,0.01306732,59291.0,59290.0,0.69989747]
[1725106969610,0.01306732,59291.0,59290.0,0.69991165]
[1725106970728,0.01306732,59291.0,59290.0,0.53124965]
[1725106971911,0.18172632,59291.0,59290.0,0.53124965]
[1725106972144,0.18172632,59291.0,59290.0,0.5312398]
[1725106972361,0.85636432,59291.0,59290.0,0.58203253]
[1725106972587,0.85636432,59291.0,59290.0,0.4555398]
[1725106972853,0.85636432,59291.0,59290.0,0.5820625]
[1725106973616,0.85636432,59291.0,59290.0,0.4555398]
[1725106973855,0.51904532,59291.0,59290.0,0.4555398]
[1725106975154,0.51904532,59291.0,59290.0,0.5339398]
[1725106975740,0.18172632,59291.0,59290.0,0.5339398]
[1725106975928,0.01306732,59291.0,59290.0,0.5339398]
[1725106976381,0.01306732,59291.0,59290.0,0.7026018]
[1725106979250,0.000818,59291.0,59290.0,0.7026018]
[1725106980548,0.000818,59291.0,59290.0,0.5339398]
[1725106981084,0.01133392,59291.0,59290.0,0.5339398]
[1725106981292,0.000818,59291.0,59290.0,0.5339398]
[1725106982244,0.01133393,59291.0,59290.0,0.5339398]
[1725106985287,0.01133393,59291.0,59290.0,0.53393565]
[1725106985923,0.000818,59291.0,59290.0,0.53393565]
[1725106990566,0.000818,59291.0,59290.0,0.70259765]
[1725106991031,0.000818,59291.0,59290.0,1.05826888]
[1725106991198,0.000818,59291.0,59290.0,1.21023442]
[1725106992443,0.000818,59291.0,59290.0,1.90158088]
[1725106993907,0.000818,59291.0,59290.0,1.56425588]
[1725106994509,0.000818,59291.0,59290.0,1.71616137]
[1725106998722,0.000818,59291.0,59290.0,2.05348637]
[1725106998971,0.000818,59291.0,59290.0,2.05848637]
[1725107001234,0.000818,59291.0,59290.0,1.72116137]
[1725107001458,0.000818,59291.0,59290.0,2.14134957]
[1725107001664,0.000818,59291.0,59290.0,1.80402457]
[1725107001879,0.168642,59298.0,59293.0,0.168652]
[1725107002087,0.168642,59298.0,59297.0,0.10125413]
[1725107002325,0.168642,59298.0,59297.0,0.47578998]
[1725107003193,0.170642,59298.0,59297.0,0.47578998]
[1725107003632,0.168642,59298.0,59297.0,0.47578998]
[1725107003941,0.607921,59298.0,59297.0,0.47578998]
[1725107004150,0.270642,59298.0,59297.0,0.47578998]
[1725107005389,0.27146,59298.0,59297.0,0.47575565]
[1725107007264,0.27146,59298.0,59297.0,0.53845565]
[1725107007523,0.608739,59298.0,59297.0,0.53845565]
[1725107010680,0.27146,59298.0,59297.0,0.53845565]
[1725107011837,0.27146,59298.0,59297.0,0.56376843]
[1725107016105,0.002818,59298.0,59297.0,0.6108465]
[1725107016350,0.002818,59298.0,59297.0,1.8978612]
[1725107016351,0.01335147,59298.0,59297.0,1.8978612]
[1725107016591,0.002818,59298.0,59297.0,2.75097527]
[1725107016815,0.00818,59305.0,59299.0,0.996382]
[1725107017027,0.00818,59305.0,59299.0,1.99382347]
[1725107017237,0.00818,59305.0,59299.0,1.99182347]
[1725107017859,0.00818,59305.0,59299.0,1.6337214]
[1725107018072,0.168622,59304.0,59299.0,1.44809075]
[1725107018276,0.00818,59305.0,59299.0,1.0266135]
[1725107018486,0.168622,59304.0,59299.0,0.6893405]
[1725107018920,0.00818,59305.0,59299.0,1.0266135]
[1725107019122,0.00818,59305.0,59299.0,1.0336135]
[1725107019333,0.00818,59305.0,59299.0,1.0426135]
[1725107019334,0.168622,59304.0,59299.0,1.0426135]
[1725107019750,0.168622,59304.0,59299.0,0.668109]
[1725107019992,0.00818,59305.0,59299.0,1.04255105]
[1725107020408,0.1768,59305.0,59299.0,1.04255105]
[1725107022791,0.00818,59305.0,59299.0,1.12541425]
[1725107022974,0.1768,59305.0,59299.0,1.12541425]